bitfinex-derivatives/quotes_SOLF0:USTF0_20250914
["timestamp","ask_amount","ask_price","bid_price","bid_amount"]
[1757856551498,2.82232708,244.77,244.63,6.47]
[1757856551796,4.54,244.82,244.63,6.47]
[1757856551995,2.8216106,244.81,244.63,6.47]
[1757856552196,2.8216106,244.8,244.63,6.47]
[1757856552394,2.8216106,244.79,244.63,6.47]
[1757856552701,2.8216106,244.78,244.63,6.47]
[1757856552891,2.82083392,244.77,244.63,6.47]
[1757856553086,4.02,244.82,244.63,6.47]
[1757856553291,2.82024089,244.81,244.63,6.47]
[1757856553494,2.82024089,244.8,244.63,6.47]
[1757856553691,6.42,244.84,244.63,6.83937212]
[1757856553893,2.82060726,244.83,244.64,6.47]
[1757856554090,2.82060726,244.82,244.64,6.47]
[1757856554296,2.82060726,244.81,244.64,6.47]
[1757856554490,6.42,244.84,244.64,6.47]
[1757856554699,2.8203278,244.83,244.64,6.47]
[1757856554996,2.8203278,244.82,244.64,6.47]
[1757856555191,2.8203278,244.81,244.64,6.47]
[1757856555392,6.42,244.84,244.64,6.47]
[1757856555592,2.82002117,244.83,244.64,6.47]
[1757856555790,2.82002117,244.82,244.63,6.47]
[1757856555998,2.82002117,244.81,244.63,6.47]
[1757856556302,2.82002117,244.8,244.64,6.47]
[1757856556599,2.82002117,244.79,244.64,6.47]
[1757856556798,2.82002117,244.78,244.64,6.47]
[1757856556988,6.42,244.84,244.64,6.47]
[1757856556989,2.82002117,244.77,244.64,6.47]
[1757856557195,6.42,244.84,244.64,6.47]
[1757856557394,2.81872265,244.83,244.64,6.47]
[1757856557697,2.81872265,244.82,244.64,6.47]
[1757856558000,2.81872265,244.81,244.64,6.47]
[1757856558195,2.81872265,244.8,244.64,6.47]
[1757856558400,2.81872265,244.79,244.64,6.47]
[1757856558600,2.81872265,244.78,244.64,6.47]
[1757856558798,4.483497,244.82,244.64,6.47]
[1757856558799,2.81872265,244.77,244.64,6.47]
[1757856559003,25.723497,244.89,244.64,6.47]
[1757856559198,24.05763399,244.88,244.64,6.47]
[1757856559502,2.81763399,244.87,244.65,6.47]
[1757856559697,2.81763399,244.86,244.65,6.47]
[1757856559894,2.81763399,244.85,244.65,6.47]
[1757856560091,2.81763399,244.84,244.65,6.47]
[1757856560400,2.81763399,244.83,244.65,6.47]
[1757856560599,2.81763399,244.82,244.65,6.47]
[1757856560794,2.81763399,244.81,244.65,6.47]
[1757856560993,21.24,244.88,244.65,6.47]
[1757856561198,2.81831357,244.87,244.65,6.47]
[1757856561498,2.81831357,244.86,244.65,6.47]
[1757856561693,21.24,244.88,244.65,6.47]
[1757856561694,2.81831357,244.85,244.65,6.47]
[1757856561890,2.81831357,244.84,244.65,6.47]
[1757856562093,2.81831357,244.83,244.65,6.47]
[1757856562292,2.81831357,244.82,244.65,6.47]
[1757856562495,2.81831357,244.81,244.65,6.47]
[1757856562699,2.81831357,244.8,244.65,6.47]
[1757856562899,21.24,244.88,244.65,6.47]
[1757856563101,2.81867381,244.87,244.65,6.47]
[1757856563300,2.81867381,244.86,244.65,6.47]
[1757856563503,2.81867381,244.85,244.65,6.47]
[1757856563802,2.81858828,244.84,244.65,6.47]
[1757856564103,2.81858828,244.83,244.65,6.47]
[1757856564301,2.81858828,244.82,244.65,6.47]
[1757856564505,2.81858828,244.81,244.65,6.47]
[1757856564703,5.64,244.85,244.65,6.47]
[1757856564908,2.81858116,244.84,244.65,6.47]
[1757856565199,2.81858116,244.83,244.65,6.47]
[1757856565401,2.81858116,244.82,244.65,6.47]
[1757856565602,3.24,244.88,244.65,6.47]
[1757856565802,2.81864248,244.87,244.65,6.47]
[1757856566003,2.81864248,244.86,244.65,6.47]
[1757856566204,2.81864248,244.85,244.66,6.47]
[1757856566507,3.02,244.95,244.69,6.47]
[1757856566698,2.81913224,244.94,244.69,6.47]
[1757856567004,2.81913224,244.93,244.8,6.49930523]
[1757856567204,2.81913224,244.92,244.8,6.49930523]
[1757856567425,2.81913224,244.91,244.8,6.47]
[1757856567599,2.81913224,244.9,244.8,6.47]
[1757856567804,27.62,244.95,244.8,6.47]
[1757856568100,2.81933935,244.94,244.8,6.47]
[1757856568304,2.81933935,244.93,244.8,6.47]
[1757856568504,2.81933935,244.92,244.8,6.47]
[1757856568705,2.81933935,244.91,244.8,6.47]
[1757856568905,2.81933935,244.9,244.8,6.47]
[1757856569099,2.81933935,244.89,244.8,6.47]
[1757856569304,27.62,244.95,244.8,6.47]
[1757856569505,2.81769559,244.94,244.8,6.47]
[1757856569707,2.81769559,244.93,244.8,6.47]
[1757856569911,2.81769559,244.92,244.7,6.76]
[1757856570101,2.81769559,244.91,244.7,6.76]
[1757856570302,2.81769559,244.9,244.7,6.76]
[1757856570603,2.81769559,244.89,244.7,6.76]
[1757856570805,2.81769559,244.88,244.7,6.76]
[1757856570998,2.81769559,244.87,244.7,6.76]
[1757856571200,2.81769559,244.86,244.7,6.76]
[1757856571398,27.62,244.95,244.7,6.76]
[1757856571702,2.81745134,244.94,244.7,6.76]
[1757856571907,2.81745134,244.93,244.7,6.76]
[1757856572201,2.81745134,244.92,244.7,6.76]
[1757856572401,2.81745134,244.91,244.7,6.76]
[1757856572602,2.81745134,244.9,244.7,6.76]
[1757856572805,2.81745134,244.89,244.7,6.76]
[1757856573000,2.81745134,244.88,244.7,6.76]
[1757856573196,2.81745134,244.87,244.7,6.76]
[1757856573397,2.81745134,244.86,244.7,6.76]
[1757856573598,27.62,244.95,244.7,6.76]
[1757856573805,2.81772189,244.94,244.7,6.76]
[1757856574006,2.81772189,244.93,244.7,6.76]
[1757856574307,2.81772189,244.92,244.7,6.76]
[1757856574607,2.81772189,244.91,244.7,6.76]
[1757856574804,2.81772189,244.9,244.7,6.76]
[1757856575005,2.81772189,244.89,244.7,6.76]
[1757856575207,2.81772189,244.88,244.7,6.76]
[1757856575412,2.81772189,244.87,244.7,6.76]
[1757856575708,2.81772189,244.86,244.7,6.76]
[1757856575908,2.81772189,244.85,244.7,6.76]
[1757856576101,32.103497,244.95,244.7,6.76]
[1757856576305,7.30214032,244.94,244.7,6.76]
[1757856576616,2.81864332,244.93,244.7,6.76]
[1757856576909,2.81864332,244.92,244.7,6.76]
[1757856577110,2.81864332,244.91,244.7,6.76]
[1757856577305,4.483497,244.94,244.7,6.76]
[1757856577306,2.81864332,244.9,244.7,6.76]
[1757856577511,2.81864332,244.89,244.7,6.76]
[1757856577710,2.81864332,244.88,244.7,6.76]
[1757856577905,2.81864332,244.87,244.7,6.76]
[1757856578101,2.81864332,244.86,244.7,6.76]
[1757856578307,2.81864332,244.85,244.7,6.76]
[1757856578515,2.81864332,244.84,244.7,6.76]
[1757856578807,6.68,244.86,244.7,6.76]
[1757856578808,2.81864332,244.83,244.7,6.76]
[1757856579012,2.81864332,244.82,244.7,6.76]
[1757856579208,2.81864332,244.81,244.7,6.76]
[1757856579411,2.81864332,244.8,244.7,6.76]
[1757856579607,2.81864332,244.79,244.7,6.76]
[1757856579812,6.68,244.86,244.7,6.76]
[1757856580009,2.81691872,244.85,244.7,6.76]
[1757856580208,2.81691872,244.84,244.7,6.76]
[1757856580415,2.81691872,244.83,244.7,6.76]
[1757856580615,2.81691872,244.82,244.7,6.76]
[1757856580817,2.81691872,244.81,244.7,6.76]
[1757856581004,2.81691872,244.8,244.7,6.76]
[1757856581208,2.81691872,244.79,244.7,6.76]
[1757856581510,3.4,244.88,244.7,6.76]
[1757856581706,2.81684728,244.87,244.7,6.76]
[1757856581925,2.81684728,244.86,244.7,6.76]
[1757856582109,2.81684728,244.85,244.7,6.76]
[1757856582305,2.81684728,244.84,244.7,6.76]
[1757856582610,2.81684728,244.83,244.7,6.76]
[1757856582811,2.81684728,244.82,244.7,6.76]
[1757856583008,2.81684728,244.81,244.7,6.76]
[1757856583205,2.81684728,244.8,244.7,6.76]
[1757856583409,3.4,244.88,244.7,6.76]
[1757856583715,2.81627862,244.87,244.7,6.76]
[1757856583909,2.81627862,244.86,244.7,6.76]
[1757856584108,2.81627862,244.85,244.7,6.76]
[1757856584308,2.81627862,244.84,244.7,6.76]
[1757856584508,2.81627862,244.83,244.7,6.76]
[1757856584711,2.81627862,244.82,244.7,6.76]
[1757856584911,2.81627862,244.81,244.7,6.76]
[1757856585112,3.4,244.88,244.7,6.76]
[1757856585309,2.80116389,244.87,244.7,6.76]
[1757856585508,2.80116389,244.86,244.7,6.76]
[1757856585713,2.80116389,244.85,244.7,6.76]
[1757856586014,2.80116389,244.84,244.7,6.76]
[1757856586215,5.32,244.92,244.7,6.76]
[1757856586514,2.80231158,244.91,244.7,6.76]
[1757856586713,2.80231158,244.9,244.7,6.76]
[1757856586914,2.80231158,244.89,244.7,6.76]
[1757856587110,2.80231158,244.88,244.7,6.76]
[1757856587308,2.80231158,244.87,244.7,6.76]
[1757856587509,21.5,244.95,244.7,6.76]
[1757856587705,2.80286966,244.94,244.7,6.76]
[1757856587909,2.80286966,244.93,244.7,6.76]
[1757856588111,2.80286966,244.92,244.7,6.76]
[1757856588313,2.80286966,244.91,244.7,6.76]
[1757856588516,2.80286966,244.9,244.7,6.76]
[1757856588710,2.80286966,244.89,244.7,6.76]
[1757856588910,21.5,244.95,244.7,6.76]
[1757856589215,21.5,244.95,244.71,6.76]
[1757856589216,2.80278674,244.94,244.71,6.76]
[1757856589413,2.80278674,244.93,244.71,6.76]
[1757856589715,2.80278674,244.92,244.71,6.76]
[1757856589910,2.80278674,244.91,244.71,6.76]
[1757856590117,2.80278674,244.9,244.71,6.76]
[1757856590318,2.80278674,244.89,244.71,6.76]
[1757856590508,21.5,244.95,244.71,6.76]
[1757856590707,2.80262906,244.94,244.71,6.76]
[1757856590912,2.80262906,244.93,244.71,6.76]
[1757856591115,2.80262906,244.92,244.71,6.76]
[1757856591314,2.80262906,244.91,244.71,6.76]
[1757856591513,2.80262906,244.9,244.71,6.76]
[1757856591720,2.80262906,244.89,244.71,6.76]
[1757856591918,21.5,244.95,244.71,6.76]
[1757856592119,2.80246314,244.94,244.71,6.76]
[1757856592313,2.80246314,244.93,244.71,6.76]
[1757856592511,375.76,244.98,244.74,6.76]
[1757856592816,2.80260892,244.97,244.76,6.76]
[1757856593017,2.80260892,244.96,244.76,6.76]
[1757856593218,2.80260892,244.95,244.76,6.76]
[1757856593414,2.80260892,244.94,244.76,6.76]
[1757856593617,375.76,244.98,244.76,6.76]
[1757856593921,2.80198945,244.97,244.76,6.76]
[1757856594222,2.80198945,244.96,244.76,6.76]
[1757856594423,2.80198945,244.95,244.76,6.76]
[1757856594720,375.76,244.98,244.76,6.76]
[1757856594923,2.80104108,244.97,244.76,6.76]
[1757856595223,2.80104108,244.96,244.76,6.76]
[1757856595521,101.34,244.98,244.76,6.76]
[1757856595714,2.80085272,244.97,244.76,6.76]
[1757856596823,101.34,244.98,244.78,6.76]
[1757856597935,5.06617,245.01,244.78,6.76]
[1757856598329,5.06617,245.01,244.79,6.83]
[1757856600228,5.06617,245.01,244.81,6.83]
[1757856600433,5.06617,245.01,244.83,6.83]
[1757856601332,5.06617,245.01,244.84,54.72]
[1757856601533,5.06617,245.01,244.85,6.88]
[1757856601928,5.06617,245.01,244.87,6.88]
[1757856602231,5.06617,245.01,244.88,93.24]
[1757856602430,5.06617,245.01,244.9,0.4]
[1757856603325,0.4,245.0,244.89,6.88]
[1757856603530,5.06617,245.01,244.89,6.88]
[1757856603726,0.4,245.0,244.89,6.88]
[1757856603927,3.19426654,245.0,244.8,12.4]
[1757856604133,2.79426654,245.0,244.81,6.88]
[1757856604635,3.19426654,245.0,244.81,6.88]
[1757856605524,2.79426654,245.0,244.81,6.88]
[1757856607545,2.79426654,244.99,244.81,6.88]
[1757856607765,2.79426654,244.98,244.81,6.88]
[1757856607930,2.79426654,244.97,244.81,6.88]
[1757856608134,2.79426654,244.96,244.81,6.88]
[1757856608439,2.79426654,244.95,244.81,6.88]
[1757856608633,2.79426654,244.94,244.81,6.88]
[1757856608840,0.4,245.0,244.81,6.88]
[1757856609030,2.79434502,244.99,244.81,6.88]
[1757856609237,2.79434502,244.98,244.81,6.88]
[1757856609538,2.79434502,244.97,244.81,6.88]
[1757856609739,13.33434502,244.96,244.81,6.88]
[1757856609941,2.79434502,244.95,244.81,6.88]
[1757856610341,2.79434502,244.94,244.81,6.88]
[1757856610543,2.79434502,244.93,244.81,6.88]
[1757856610743,2.79434502,244.92,244.81,6.88]
[1757856611044,10.54,244.96,244.81,6.88]
[1757856611241,2.79497805,244.95,244.81,6.88]
[1757856612443,2.79497805,244.94,244.81,6.88]
[1757856612644,0.4,244.9,244.81,6.88]
[1757856615146,0.4,244.9,244.73,6.88]
[1757856615349,2.79427293,244.92,244.73,6.88]
[1757856615548,2.79427293,244.91,244.73,6.88]
[1757856615847,2.79427293,244.9,244.73,6.88]
[1757856616049,2.79427293,244.89,244.73,6.88]
[1757856616250,10.54,244.96,244.73,6.88]
[1757856616542,2.78979378,244.95,244.73,6.88]
[1757856616748,2.78979378,244.94,244.73,6.88]
[1757856617046,2.78979378,244.93,244.73,6.88]
[1757856617251,2.78979378,244.92,244.73,6.88]
[1757856617443,2.78979378,244.91,244.73,6.88]
[1757856617648,2.78979378,244.9,244.73,6.88]
[1757856617949,2.78979378,244.89,244.73,6.88]
[1757856618148,2.78979378,244.88,244.73,6.88]
[1757856618348,2.78979378,244.87,244.73,6.88]
[1757856618549,12.42,244.92,244.73,6.88]
[1757856618852,2.78952314,244.91,244.73,6.88]
[1757856619062,2.78952314,244.9,244.73,6.88]
[1757856619249,13.9,244.93,244.73,6.88]
[1757856619452,2.78992961,244.92,244.73,6.88]
[1757856619652,2.78992961,244.92,244.74,6.88]
[1757856619955,2.78992961,244.92,244.74,26.52]
[1757856620155,2.78992961,244.92,244.75,6.88]
[1757856628259,2.78992961,244.92,244.76,6.87]
[1757856630761,2.78992961,244.92,244.77,6.68]
[1757856630956,148.28009846,244.99,244.77,6.68]
[1757856631161,2.79773369,244.98,244.77,6.68]
[1757856631461,2.79773369,244.97,244.77,6.68]
[1757856631654,148.28009846,244.99,244.66,12.0756408]
[1757856631655,2.79773369,244.96,244.79,6.68]
[1757856631856,2.79773369,244.95,244.79,6.68]
[1757856632061,148.28009846,244.99,244.79,6.68]
[1757856632363,2.79694168,244.98,244.79,6.68]
[1757856632563,2.79694168,244.97,244.79,6.68]
[1757856632863,2.79694168,244.96,244.79,6.68]
[1757856633062,2.79694168,244.95,244.79,6.68]
[1757856633261,2.79694168,244.94,244.79,6.68]
[1757856633564,2.79694168,244.93,244.79,6.68]
[1757856633757,148.28009846,244.99,244.79,6.68]
[1757856633965,2.79661389,244.98,244.79,6.68]
[1757856634264,2.79661389,244.97,244.79,6.68]
[1757856634464,2.79661389,244.96,244.79,6.68]
[1757856634764,2.79661389,244.95,244.79,6.68]
[1757856634965,2.79661389,244.94,244.79,6.68]
[1757856635163,2.79661389,244.93,244.79,6.68]
[1757856635358,2.79661389,244.92,244.73,6.68]
[1757856635565,2.79661389,244.91,244.73,6.68]
[1757856635862,2.79661389,244.9,244.73,6.68]
[1757856636058,2.79661389,244.89,244.73,6.68]
[1757856636255,2.79661389,244.88,244.73,6.68]
[1757856636468,2.79661389,244.87,244.73,6.68]
[1757856636769,2.79439495,244.86,244.73,6.68]
[1757856636963,2.79439495,244.85,244.73,6.68]
[1757856637267,2.79439495,244.84,244.73,6.68]
[1757856637456,2.79439495,244.83,244.73,6.68]
[1757856637660,34.903497,244.92,244.73,6.68]
[1757856637862,2.79395269,244.91,244.73,6.68]
[1757856638062,2.79395269,244.9,244.73,6.68]
[1757856638263,2.79395269,244.89,244.73,6.68]
[1757856638460,2.79395269,244.88,244.73,6.68]
[1757856638666,2.79395269,244.87,244.73,6.68]
[1757856638862,2.79395269,244.86,244.73,6.68]
[1757856639063,2.79395269,244.85,244.73,6.68]
[1757856639356,2.79395269,244.84,244.73,6.68]
[1757856639556,14.86,244.91,244.73,6.68]
[1757856639762,2.79443493,244.9,244.73,6.68]
[1757856640066,2.79443493,244.89,244.73,6.68]
[1757856640367,2.79443493,244.88,244.73,6.68]
[1757856640557,2.79443493,244.87,244.73,6.68]
[1757856640765,2.79443493,244.86,244.73,6.68]
[1757856641066,2.79443493,244.85,244.73,6.68]
[1757856641267,2.79443493,244.84,244.73,6.68]
[1757856641469,2.79443493,244.83,244.73,6.68]
[1757856641672,14.86,244.91,244.73,6.68]
[1757856641868,2.79264377,244.9,244.73,6.68]
[1757856642173,2.79264377,244.89,244.73,6.68]
[1757856642470,2.79264377,244.88,244.73,6.68]
[1757856642667,2.79264377,244.87,244.73,6.68]
[1757856642971,14.86,244.91,244.73,6.68]
[1757856642972,2.79264377,244.86,244.73,6.68]
[1757856643170,14.86,244.91,244.73,6.68]
[1757856643171,2.79264377,244.85,244.73,6.68]
[1757856643470,2.79264377,244.84,244.73,6.68]
[1757856643670,2.79264377,244.83,244.73,6.68]
[1757856643973,14.86,244.91,244.73,6.68]
[1757856644270,2.79212583,244.9,244.73,6.68]
[1757856644472,2.79212583,244.89,244.73,6.68]
[1757856644670,2.79212583,244.88,244.73,6.68]
[1757856644874,2.79212583,244.87,244.73,6.68]
[1757856645174,2.79212583,244.86,244.73,6.68]
[1757856645368,2.79212583,244.85,244.73,6.68]
[1757856645668,2.79212583,244.84,244.73,6.68]
[1757856645868,14.86,244.91,244.73,6.68]
[1757856646063,2.79667442,244.9,244.73,6.68]
[1757856646267,60.37667442,244.89,244.73,6.68]
[1757856646471,2.79667442,244.88,244.73,6.68]
[1757856646679,2.79667442,244.87,244.73,6.68]
[1757856646867,2.79840194,244.86,244.73,6.68]
[1757856647074,12.66,244.92,244.73,6.68]
[1757856647368,2.80009413,244.91,244.73,6.68]
[1757856647575,2.80009413,244.9,244.73,6.68]
[1757856647772,2.80009413,244.89,244.73,6.68]
[1757856648074,2.80009413,244.88,244.73,6.68]
[1757856648274,4.483497,244.98,244.73,6.68]
[1757856648467,2.80157154,244.97,244.73,6.68]
[1757856648665,2.80157154,244.96,244.73,6.68]
[1757856648975,2.80157154,244.95,244.73,6.68]
[1757856649171,2.80157154,244.94,244.73,6.68]
[1757856649372,2.80157154,244.93,244.73,6.68]
[1757856649575,2.80157154,244.92,244.73,6.68]
[1757856649778,2.80157154,244.91,244.73,6.68]
[1757856649981,2.80157154,244.9,244.75,6.68]
[1757856650183,2.80157154,244.89,244.77,6.68]
[1757856650377,18.423497,244.98,244.77,6.68]
[1757856650573,2.80271247,244.97,244.77,6.68]
[1757856650774,2.80271247,244.96,244.77,6.68]
[1757856650975,2.80271247,244.95,244.77,6.68]
[1757856651174,2.80271247,244.94,244.77,6.68]
[1757856651378,2.80271247,244.93,244.77,6.68]
[1757856651584,2.80271247,244.92,244.77,6.68]
[1757856651880,2.80271247,244.91,244.77,6.68]
[1757856652080,2.80271247,244.9,244.77,6.68]
[1757856652281,2.80271247,244.89,244.77,6.68]
[1757856652582,18.423497,244.98,244.77,6.68]
[1757856652782,2.80311453,244.97,244.77,6.68]
[1757856653082,2.80311453,244.96,244.77,6.68]
[1757856653282,2.80311453,244.95,244.77,6.68]
[1757856653483,2.80311453,244.94,244.77,6.68]
[1757856653683,2.80311453,244.93,244.77,6.68]
[1757856653876,2.80311453,244.92,244.77,6.68]
[1757856654076,2.80311453,244.91,244.77,6.68]
[1757856654276,2.80311453,244.9,244.77,6.68]
[1757856654478,2.80311453,244.89,244.77,6.68]
[1757856654678,18.423497,244.98,244.77,6.68]
[1757856654877,2.80214352,244.97,244.77,6.68]
[1757856655081,2.80214352,244.96,244.77,6.68]
[1757856655279,2.80214352,244.95,244.77,6.68]
[1757856655485,2.80214352,244.94,244.77,6.68]
[1757856655786,2.80214352,244.93,244.77,6.68]
[1757856656080,13.94,244.98,244.77,6.68]
[1757856656081,2.80214352,244.92,244.77,6.68]
[1757856656281,2.80214352,244.91,244.77,6.68]
[1757856656586,2.80250986,244.9,244.77,6.68]
[1757856656785,2.80250986,244.89,244.77,6.68]
[1757856656985,2.80250986,244.88,244.68,37.64]
[1757856657285,2.80250986,244.87,244.69,6.68]
[1757856657584,2.80250986,244.86,244.69,6.68]
[1757856657787,2.80250986,244.85,244.69,6.68]
[1757856657981,2.80250986,244.84,244.69,6.68]
[1757856658184,2.80250986,244.83,244.69,6.68]
[1757856658378,4.483497,244.92,244.69,6.68]
[1757856658584,2.80212904,244.91,244.69,6.68]
[1757856658785,2.80212904,244.9,244.69,6.68]
[1757856659088,2.80212904,244.89,244.69,6.68]
[1757856659282,2.80212904,244.88,244.69,6.68]
[1757856659483,2.80212904,244.87,244.69,6.68]
[1757856659782,2.80212904,244.86,244.69,6.68]
[1757856659978,2.80212904,244.85,244.69,6.68]
[1757856660178,2.80212904,244.84,244.69,6.68]
[1757856660387,2.80212904,244.83,244.69,6.68]
[1757856660584,3.72,244.88,244.69,6.68]
[1757856660781,2.8011672,244.87,244.69,6.68]
[1757856661083,2.8011672,244.86,244.69,6.68]
[1757856661280,2.8011672,244.85,244.69,6.68]
[1757856661486,2.8011672,244.84,244.69,6.68]
[1757856661692,2.8011672,244.83,244.69,6.68]
[1757856661988,3.72,244.88,244.69,6.68]
[1757856662187,2.80022188,244.87,244.69,6.68]
[1757856662488,3.72,244.88,244.69,6.68]
[1757856662489,2.80022188,244.86,244.69,6.68]
[1757856662787,2.80022188,244.85,244.69,6.68]
[1757856663088,2.80022188,244.84,244.69,6.68]
[1757856663289,2.80022188,244.83,244.69,6.68]
[1757856663493,2.80022188,244.82,244.69,6.68]
[1757856663690,3.72,244.88,244.69,6.68]
[1757856663891,2.80134875,244.87,244.69,6.68]
[1757856664091,2.80134875,244.86,244.69,6.68]
[1757856664290,2.80134875,244.85,244.69,6.68]
[1757856664592,2.80134875,244.84,244.69,6.68]
[1757856664792,2.80134875,244.83,244.69,6.68]
[1757856665090,2.80134875,244.82,244.69,6.68]
[1757856665286,2.80134875,244.81,244.69,6.68]
[1757856665484,2.80134875,244.8,244.69,6.68]
[1757856665681,19.22,244.85,244.69,6.68]
[1757856665882,2.80026629,244.84,244.69,6.68]
[1757856666087,2.80026629,244.83,244.69,6.68]
[1757856666293,2.80026629,244.82,244.69,6.68]
[1757856666594,2.80026629,244.81,244.69,6.68]
[1757856666788,2.80026629,244.8,244.69,6.68]
[1757856666993,19.22,244.85,244.69,6.68]
[1757856667195,2.79991426,244.84,244.69,6.68]
[1757856667397,2.79991426,244.83,244.69,6.68]
[1757856667597,2.79991426,244.82,244.69,6.68]
[1757856667790,2.79991426,244.81,244.69,6.68]
[1757856667995,54.8,244.86,244.69,6.68]
[1757856668195,2.79997836,244.85,244.69,6.68]
[1757856668396,2.79997836,244.84,244.69,6.68]
[1757856668605,12.08121746,244.87,244.69,6.68]
[1757856668792,2.80002392,244.86,244.69,6.68]
[1757856668998,2.80002392,244.85,244.7,6.5]
[1757856669196,2.80002392,244.84,244.7,6.5]
[1757856669403,2.80002392,244.83,244.7,6.5]
[1757856669602,2.80002392,244.82,244.7,6.5]
[1757856669799,18.52,244.9,244.7,6.5]
[1757856670002,2.79970265,244.89,244.7,6.5]
[1757856670202,2.79970265,244.88,244.7,6.5]
[1757856670503,2.79970265,244.87,244.7,6.5]
[1757856670700,2.79970265,244.86,244.7,6.5]
[1757856670898,2.79970265,244.85,244.7,6.5]
[1757856671103,2.79970265,244.84,244.7,6.5]
[1757856671304,2.79970265,244.83,244.7,6.5]
[1757856671601,30.59484098,244.9,244.7,6.5]
[1757856671804,2.79946063,244.89,244.7,6.5]
[1757856671999,2.79946063,244.88,244.7,6.5]
[1757856672198,278.883497,244.92,244.7,6.5]
[1757856672199,2.79946063,244.87,244.7,6.5]
[1757856672401,2.79946063,244.86,244.7,6.5]
[1757856672599,2.7997623,244.85,244.7,6.5]
[1757856672802,20.14,244.91,244.7,6.5]
[1757856673103,2.79973088,244.9,244.7,6.5]
[1757856673304,2.79973088,244.89,244.7,6.5]
[1757856673503,2.79973088,244.88,244.7,6.5]
[1757856673802,2.79973088,244.87,244.7,6.5]
[1757856674104,2.79973088,244.86,244.7,6.5]
[1757856674404,312.71372415,244.92,244.71,6.5]
[1757856674405,2.79973088,244.85,244.71,6.5]
[1757856674593,38.31372415,244.92,244.71,6.5]
[1757856674795,2.80011248,244.91,244.71,6.5]
[1757856675007,2.80011248,244.9,244.71,6.5]
[1757856675198,2.80011248,244.89,244.71,6.5]
[1757856675396,2.80011248,244.88,244.71,6.5]
[1757856675592,2.80011248,244.87,244.71,6.5]
[1757856675815,422.70009846,244.99,244.71,6.5]
[1757856675816,4.483497,244.96,244.71,6.5]
[1757856676002,18.34,244.94,244.71,6.5]
[1757856676201,2.80618659,244.93,244.73,6.5]
[1757856676503,2.80618659,244.92,244.73,6.5]
[1757856676697,2.80618659,244.91,244.73,6.5]
[1757856676999,2.80618659,244.9,244.73,6.5]
[1757856677205,32.583497,244.98,244.73,6.5]
[1757856677406,2.80805353,244.97,244.73,6.5]
[1757856677705,2.80805353,244.96,244.73,6.5]
[1757856678003,2.80805353,244.95,244.73,6.5]
[1757856678202,422.70009846,244.99,244.76,13.33937212]
[1757856678404,2.8086884,244.98,244.77,6.5]
[1757856678605,0.02614823,244.9,244.85,0.03073217]
[1757856679003,0.02614823,244.9,244.86,6.5]
[1757856680094,0.02614823,244.9,244.85,0.03073217]
[1757856680296,0.02614823,244.9,244.86,6.5]
[1757856680601,0.02614823,244.9,244.85,0.03073217]
[1757856680906,0.02614823,244.9,244.86,6.5]
[1757856681502,0.02614823,244.9,244.86,6.9]
[1757856681706,5.06617,245.01,244.88,6.5]
[1757856681905,2.80766222,245.0,244.88,6.5]
[1757856682103,5.06617,245.01,244.89,6.5]